bitfinex/quotes_ETHUSD_20250219
["timestamp","ask_amount","ask_price","bid_price","bid_amount"]
[1739984925188,0.04690447,2718.1,2717.6,0.93566658]
[1739984925392,0.04690447,2718.1,2717.8,3.67937]
[1739984925569,0.7689,2718.5,2717.8,3.67937]
[1739984925767,0.0473419,2718.4,2717.9,0.367937]
[1739984925983,0.0473419,2718.4,2717.9,8.867237]
[1739984926186,0.0473419,2718.4,2717.9,5.187937]
[1739984926590,0.0473419,2718.4,2717.9,8.867227]
[1739984926784,0.0473419,2718.4,2718.1,3.67896]
[1739984927009,0.0473419,2718.4,2718.2,0.367896]
[1739984927211,0.7868,2718.8,2718.2,0.367896]
[1739984927987,0.7868,2718.8,2718.2,5.187896]
[1739984928181,0.047703,2718.7,2718.3,3.67869]
[1739984928382,0.7868,2718.8,2718.3,3.67869]
[1739984928596,0.047703,2718.7,2718.3,4.9332426]
[1739984928814,0.7868,2718.8,2718.3,4.9332426]
[1739984929147,0.04761285,2718.6,2718.3,4.9332426]
[1739984929313,0.047703,2718.7,2718.3,4.9332426]
[1739984929500,0.0475227,2718.5,2718.3,4.9332426]
[1739984929702,0.7868,2718.8,2718.4,1.01211386]
[1739984929902,0.7868,2718.8,2718.3,4.9332426]
[1739984930839,0.7868,2718.8,2718.3,4.9332226]
[1739984931834,0.047703,2718.7,2718.3,1.2545526]
[1739984932038,0.047703,2718.7,2718.3,4.9333126]
[1739984932333,0.7868,2718.8,2718.3,4.9333126]
[1739984932547,0.04761285,2718.6,2718.3,4.9333126]
[1739984932738,0.047703,2718.7,2718.4,0.97533126]
[1739984932938,0.04567086,2718.5,2718.3,4.9333126]
[1739984933243,0.0455807,2718.4,2718.3,4.9333126]
[1739984933840,0.7868,2718.8,2718.3,4.9333126]
[1739984934336,0.04602102,2718.7,2718.3,4.9333126]
[1739984934840,0.04593087,2718.6,2718.3,4.9333126]
[1739984935134,0.04593087,2718.6,2718.4,0.97533126]
[1739984935341,0.7878,2719.1,2718.5,3.67841]
[1739984935539,0.7878,2719.1,2718.7,3.67822]
[1739984936240,0.7655,2719.5,2718.8,0.8016]
[1739984936473,0.7641,2719.9,2719.1,3.67757]
[1739984936637,4.44071,2719.9,2719.1,9.233096]
[1739984936836,3.15461569,2719.7,2719.1,5.555526]
[1739984937073,3.15461569,2719.7,2719.1,4.82]
[1739984937864,3.15461569,2719.7,2719.1,8.49762]
[1739984938373,6.83150569,2719.7,2719.1,4.82]
[1739984939074,0.04430566,2719.6,2719.1,4.82]
[1739984939278,0.04430566,2719.6,2719.1,8.49766]
[1739984939775,0.04430566,2719.6,2719.1,9.715201]
[1739984940478,0.04430566,2719.6,2719.2,3.67748]
[1739984940638,0.04430566,2719.6,2719.1,6.037541]
[1739984940838,3.67674,2719.8,2719.1,6.037541]
[1739984941081,0.04431177,2719.5,2719.1,4.82]
[1739984941239,3.67674,2719.8,2719.1,4.82]
[1739984941438,0.0442217,2719.4,2719.1,8.49768]
[1739984941641,3.67674,2719.8,2719.1,8.49768]
[1739984941881,0.04413161,2719.3,2719.1,8.49768]
[1739984942084,7.35355,2719.8,2719.1,9.715243]
[1739984942268,0.04404152,2719.2,2719.1,4.82]
[1739984942442,3.67697,2719.7,2719.1,4.82]
[1739984942644,0.04404152,2719.2,2719.1,8.49768]
[1739984942850,3.67697,2719.7,2719.1,8.49768]
[1739984943596,4.44071,2719.9,2719.1,8.49768]
[1739984943751,3.67674,2719.8,2719.2,4.527248]
[1739984943994,3.67674,2719.8,2719.2,0.849768]
[1739984944189,3.67693,2719.7,2719.1,4.82]
[1739984945033,3.15461569,2719.7,2719.1,4.82]
[1739984945190,4.50457,2719.3,2719.1,4.82]
[1739984945544,0.8271,2719.1,2718.2,0.7902]
[1739984945796,0.8271,2718.7,2718.2,5.6102]
[1739984945890,0.8271,2718.7,2718.2,4.82]
[1739984946303,0.04400317,2718.6,2718.2,8.49886]
[1739984946639,0.8191,2719.0,2718.5,3.67849]
[1739984947621,4.49694,2719.0,2718.4,0.7644]
[1739984947945,1.95202057,2719.0,2718.3,3.67863]
[1739984948123,0.8191,2719.0,2718.3,3.67863]
[1739984948323,0.8191,2719.0,2718.5,3.67842]
[1739984949810,0.7598,2719.2,2718.5,3.67842]
[1739984950040,6.83230569,2719.1,2718.4,3.67854]
[1739984950222,3.15461569,2719.1,2718.5,3.6784]
[1739984950444,3.15461569,2719.1,2718.6,3.67835]
[1739984950850,3.15461569,2719.1,2718.5,3.6784]
[1739984951151,3.15461569,2719.1,2718.3,8.15255]
[1739984951449,3.15461569,2719.1,2718.5,3.67847]
[1739984951656,4.34989542,2719.1,2718.5,3.67847]
[1739984951962,0.8237,2719.0,2717.8,5.5766]
[1739984952172,0.8237,2719.0,2718.3,4.42997]
[1739984952320,0.8237,2719.0,2718.5,3.67849]
[1739984952511,0.8237,2719.0,2718.6,3.67835]
[1739984952964,0.8208,2719.3,2718.6,8.092184]
[1739984953278,0.8208,2719.3,2718.7,3.67822]
[1739984953966,0.8208,2719.3,2718.8,3.67809]
[1739984954116,3.15461569,2719.0,2718.2,3.0]
[1739984954362,3.15461569,2719.0,2718.5,3.67842]
[1739984955166,3.15461569,2719.0,2718.4,4.47916]
[1739984955321,0.8062,2719.1,2718.6,3.67835]
[1739984955937,0.8062,2719.1,2718.6,7.35661]
[1739984956253,0.8062,2719.1,2718.6,4.493981]
[1739984956486,0.8062,2719.1,2718.6,8.172251]
[1739984956646,0.8062,2719.1,2718.6,4.493981]
[1739984956848,0.8062,2719.1,2718.7,3.67822]
[1739984957372,0.7946,2719.4,2718.9,4.45844]
[1739984957667,3.6775,2719.3,2718.7,5.37]
[1739984957851,0.76267157,2719.2,2718.7,5.37]
[1739984958220,0.76267157,2719.2,2718.7,9.04815]
[1739984958525,3.67754,2719.3,2718.7,5.37]
[1739984958765,7.62656569,2719.4,2718.7,5.37]
[1739984959062,7.62656569,2719.4,2718.7,9.04822]
[1739984959436,3.15461569,2719.4,2718.7,5.37]
[1739984959756,0.74654146,2719.8,2718.7,5.37]
[1739984959757,4.46122,2719.0,2718.7,5.37]
[1739984959959,3.15461569,2718.8,2718.7,5.37]
[1739984960261,3.15461569,2718.8,2718.2,4.42876]
[1739984960461,3.15461569,2718.8,2718.2,8.10755]
[1739984960661,3.15461569,2718.8,2718.2,4.42876]
[1739984960860,3.15461569,2718.8,2718.2,5.171636]
[1739984961038,4.46132,2719.0,2718.3,3.67876]
[1739984961864,0.7834,2719.0,2718.4,3.67861]
[1739984962163,4.4613,2719.0,2718.3,3.67876]
[1739984962780,4.4613,2719.0,2718.4,3.67862]
[1739984962987,1.12936357,2718.9,2718.4,3.67862]
[1739984963585,1.12936357,2718.9,2718.2,4.42881]
[1739984963883,1.12936357,2718.9,2718.4,3.67863]
[1739984964983,0.7834,2719.0,2718.5,3.67839]
[1739984965554,0.7834,2719.0,2718.4,3.67862]
[1739984965773,4.46128,2719.0,2718.3,3.67872]
[1739984966093,3.67815,2718.8,2718.1,3.67893]
[1739984966252,0.7905,2718.7,2718.1,3.67892]
[1739984966448,0.7905,2718.7,2718.4,3.67857]
[1739984966654,3.15461569,2719.1,2718.4,3.67857]
[1739984966655,0.7928,2718.9,2718.5,3.67848]
[1739984967771,0.7928,2718.9,2718.6,3.6783]
[1739984968149,0.7928,2718.9,2718.7,3.67813]
[1739984968349,5.36,2719.2,2718.7,3.67813]
[1739984968350,0.8001,2719.2,2718.8,3.67802]
[1739984969264,0.8001,2719.2,2718.7,3.67813]
[1739984969469,0.8001,2719.2,2718.6,3.67833]
[1739984969470,4.47766,2719.2,2718.6,3.67833]
[1739984969706,5.60861557,2719.2,2718.5,3.67849]
[1739984969849,1.93105557,2719.2,2718.6,3.67825]
[1739984970465,1.93105557,2719.2,2718.7,3.67821]
[1739984970666,5.60860557,2719.2,2718.7,3.67821]
[1739984970983,5.60860557,2719.2,2718.6,3.67835]
[1739984971368,1.93105557,2719.2,2718.6,3.67835]
[1739984972063,5.60861557,2719.2,2718.6,3.67835]
[1739984972307,0.7926,2719.0,2718.2,5.37]
[1739984972506,0.7926,2719.0,2718.3,3.6787]
[1739984972507,4.47046,2719.0,2718.3,3.6787]
[1739984972899,0.7926,2719.0,2718.4,3.6785]
[1739984973097,0.7926,2719.0,2718.5,3.67847]
[1739984975500,0.7926,2719.0,2718.5,3.67841]
[1739984975976,0.7926,2719.0,2718.6,3.67832]
[1739984977422,0.7926,2719.0,2718.4,3.67862]
[1739984977719,5.60067957,2719.0,2718.4,3.67863]
[1739984977890,1.92284957,2719.0,2718.4,3.67863]
[1739984978977,1.92284957,2719.0,2718.5,3.67839]
[1739984979874,1.92284957,2719.0,2718.6,3.67829]
[1739984980929,5.60072957,2719.0,2718.5,3.67839]
[1739984981217,5.60072957,2719.0,2718.5,3.67849]
[1739984981631,1.92284957,2719.0,2718.5,7.35688]
[1739984981932,1.92284957,2719.0,2718.5,7.35681]
[1739984982113,1.92284957,2719.0,2718.5,3.67839]
[1739984982530,5.60071957,2719.0,2718.5,3.67839]
[1739984983134,1.92284957,2719.0,2718.5,7.35683]
[1739984983430,1.92284957,2719.0,2718.5,3.67839]
[1739984983600,1.92284957,2719.0,2718.5,7.3568]
[1739984984130,1.92284957,2719.0,2718.5,3.67839]
[1739984984429,1.92284957,2719.0,2718.6,3.6783]
[1739984984736,1.92284957,2719.0,2718.5,3.67848]
[1739984985034,0.7926,2719.0,2718.7,3.67813]
[1739984985247,0.7926,2719.0,2718.4,3.67854]
[1739984985456,0.7926,2719.0,2718.6,3.67834]
[1739984987357,4.47044,2719.0,2718.5,3.67843]
[1739984988047,0.7926,2719.0,2718.6,3.67836]
[1739984989407,0.7926,2719.0,2718.6,3.67828]
[1739984990541,1.92284657,2719.0,2718.6,3.67828]
[1739984990845,5.60074657,2719.0,2718.5,3.6784]
[1739984991454,1.92284657,2719.0,2718.5,7.35681]
[1739984991636,1.92284657,2719.0,2718.5,7.3568]
[1739984991802,1.92284657,2719.0,2718.5,7.35683]
[1739984992345,1.92284657,2719.0,2718.5,3.6784]
[1739984992647,1.92284657,2719.0,2718.6,3.67834]
[1739984993432,0.87551623,2718.9,2718.5,3.67843]
[1739984994666,0.87551623,2718.9,2718.4,3.67855]
[1739984994829,0.87551623,2718.9,2718.6,3.67835]
[1739984995228,0.87551623,2718.9,2718.5,3.67847]
[1739984996780,0.8141,2718.6,2718.0,9.04907]
[1739984997080,4.49294,2718.3,2717.7,3.67944]
[1739984997227,0.8141,2718.1,2717.5,3.67975]
[1739984997835,0.8141,2718.1,2717.6,3.67965]
[1739984998266,0.8141,2718.1,2717.7,3.67948]
[1739984998568,0.8141,2718.1,2717.8,3.67934]
[1739985000664,0.8141,2718.1,2717.4,3.6799]
[1739985000874,5.25795857,2718.1,2717.5,3.67983]
[1739985001034,1.57884857,2718.1,2717.6,3.67971]
[1739985001458,0.7768,2717.9,2717.4,3.67989]
[1739985001733,0.7768,2717.9,2717.6,3.67961]
[1739985002367,3.93141569,2717.9,2717.3,3.68011]
[1739985002545,3.93141569,2717.9,2717.4,3.67996]
[1739985002741,3.93141569,2717.9,2717.2,3.68017]
[1739985002742,4.69247426,2717.9,2717.2,3.68017]
[1739985002988,4.69247426,2717.9,2716.9,0.84860454]
[1739985002989,4.69247426,2717.9,2717.4,3.67992]
[1739985003837,4.69247426,2717.9,2717.1,0.55]
[1739985004043,3.93141569,2717.9,2717.5,3.67975]
[1739985004272,0.7904,2717.5,2717.0,9.05043]
[1739985004472,0.7904,2717.5,2716.9,4.25716454]
[1739985004678,4.47025,2717.5,2716.9,3.68056]
[1739985004979,4.47025,2717.5,2716.9,7.36114]
[1739985005171,4.47025,2717.5,2717.0,3.68051]
[1739985005375,0.7904,2717.5,2717.0,3.68051]
[1739985005779,0.03893072,2717.4,2717.1,3.68038]
[1739985008481,0.03893072,2717.4,2717.1,3.68031]
[1739985008783,0.03893072,2717.4,2717.3,3.68012]
[1739985009085,0.03893072,2717.4,2717.3,7.26691538]
[1739985009283,0.7721,2718.0,2717.3,7.26691538]
[1739985009284,0.7721,2718.0,2717.8,3.67937]
[1739985009587,0.7619,2718.3,2718.0,3.67914]
[1739985009883,0.7619,2718.5,2718.1,0.03679162]
[1739985010188,5.36,2719.1,2718.3,3.67864]
[1739985010189,0.7619,2718.9,2718.3,3.67864]
[1739985010425,2.05734057,2718.9,2718.4,3.67861]
[1739985010677,0.7619,2718.9,2718.2,0.55]
[1739985010848,0.7657,2719.2,2718.7,3.67813]
[1739985011051,0.7657,2719.2,2718.8,3.67806]
[1739985012888,0.03871788,2719.1,2718.8,3.67806]
[1739985013474,0.03871788,2719.1,2718.6,3.67825]
[1739985013672,0.43462124,2719.1,2718.6,3.67825]
[1739985013862,0.43462124,2719.1,2718.6,7.35649]
[1739985014059,0.43462124,2719.1,2718.3,4.44306]
[1739985014263,3.15461569,2718.7,2718.2,5.37]
[1739985014464,0.03826717,2718.6,2718.2,5.37]
[1739985014675,0.801,2718.5,2717.7,9.04952]
[1739985014877,0.801,2718.5,2717.6,0.55168688]
[1739985014878,6.87135253,2718.4,2717.6,3.67963]
[1739985015184,3.19270253,2718.4,2717.8,3.67941]
[1739985015391,3.19270253,2718.4,2717.7,3.67956]
[1739985015392,0.03808684,2718.4,2717.9,3.67928]
[1739985015735,0.03808684,2718.4,2717.7,3.67947]
[1739985015986,0.03808684,2718.4,2718.1,3.67903]
[1739985016184,0.03808684,2718.4,2718.0,3.67905]
[1739985016493,0.03808684,2718.4,2718.1,3.67896]
[1739985017053,0.03808684,2718.4,2718.2,3.6789]
[1739985017355,0.03808684,2718.4,2718.3,3.67876]
[1739985017977,3.15461569,2719.0,2718.4,3.67863]
[1739985017978,0.8288,2718.7,2718.4,3.67863]
[1739985018377,0.8288,2718.7,2718.2,3.67889]
[1739985018585,0.8288,2718.7,2718.0,0.7767]
[1739985018586,3.98341569,2718.7,2718.0,3.67913]
[1739985018767,3.67852,2718.5,2717.8,9.04934]
[1739985018965,0.7588,2718.4,2717.8,9.04934]
[1739985019186,0.7588,2718.4,2717.9,3.6793]
[1739985019686,0.7588,2718.4,2718.1,3.67903]
[1739985020185,0.03799667,2718.3,2718.1,3.67894]
[1739985020990,0.03799667,2718.3,2718.1,3.67893]
[1739985022117,3.67891,2718.2,2717.6,5.37]
[1739985022291,1.60702793,2718.2,2717.6,3.67971]
[1739985022788,1.60702793,2718.2,2717.5,3.67972]
[1739985022997,1.60702793,2718.2,2717.6,3.67964]
[1739985023502,3.6791,2718.1,2717.3,3.68012]
[1739985023671,3.71801289,2718.1,2717.4,3.6799]
[1739985023872,3.71801289,2718.1,2717.6,3.67969]
[1739985023873,4.6146314,2718.1,2717.6,3.67969]
[1739985024566,4.6146314,2718.1,2717.4,3.6799]
[1739985024772,4.6146314,2718.1,2717.6,3.67967]
[1739985024980,4.6146314,2718.1,2717.4,3.67998]
[1739985025186,4.49313,2717.9,2717.3,3.68012]
[1739985025381,0.449313,2717.8,2717.4,3.67998]
[1739985025587,0.03827884,2717.8,2717.4,3.67998]
[1739985025891,0.03827884,2717.8,2717.5,3.67984]
[1739985026090,0.03827884,2717.8,2717.6,3.6797]
[1739985026393,0.03827884,2717.8,2717.5,3.67984]
[1739985027260,0.03827884,2717.8,2717.5,3.7166345]
[1739985027458,0.03827884,2717.8,2717.5,3.67984]
[1739985027663,0.03827884,2717.8,2717.5,0.367984]
[1739985027979,0.03827884,2717.8,2717.7,3.67958]
[1739985029062,0.8138,2717.9,2717.6,3.6797]
[1739985029265,0.03734423,2717.8,2717.6,7.35931]
[1739985029575,0.03734423,2717.8,2717.7,3.67958]
[1739985029975,0.7528,2718.2,2717.7,3.67958]
[1739985030291,0.811052,2718.1,2717.7,3.67958]
[1739985030499,0.03753854,2718.0,2717.7,3.67958]
[1739985030861,0.811052,2718.1,2717.7,3.67958]
[1739985032501,0.07488324,2718.0,2717.7,3.67958]
[1739985032697,0.07488324,2718.0,2717.4,0.7556]
[1739985032698,3.67923,2718.0,2717.4,3.67991]
[1739985032901,0.07480019,2717.9,2717.4,7.35981]
[1739985033402,0.07480019,2717.9,2717.5,3.67982]
[1739985033762,3.67919,2718.0,2717.5,3.67982]
[1739985033967,0.07418993,2717.8,2717.5,3.67982]
[1739985034202,0.443479,2717.9,2717.2,3.68016]
[1739985034400,1.55490119,2717.7,2717.0,12.05044]
[1739985034568,5.16039,2717.7,2717.1,3.68031]
[1739985034768,0.07403747,2717.6,2717.1,3.68031]
[1739985035189,3.67987,2717.5,2717.0,3.68044]
[1739985035501,0.07390901,2717.5,2717.0,3.68052]
[1739985035689,0.07390901,2717.5,2717.1,3.68038]
[1739985036003,0.7513,2717.4,2716.9,3.68054]
[1739985036305,0.07346846,2717.3,2717.0,3.68045]
[1739985037570,0.07346846,2717.3,2717.0,7.36088]
[1739985037780,0.07346846,2717.3,2717.0,3.68043]
[1739985037980,0.07346846,2717.3,2716.8,3.6807]
[1739985038286,0.07346846,2717.3,2716.6,9.05097]
[1739985038287,4.57205831,2717.3,2716.6,9.05097]
[1739985038594,4.57205831,2717.3,2716.7,3.6809]
[1739985038793,0.7513,2717.2,2716.7,3.6809]
[1739985039106,0.82445848,2717.2,2716.7,3.6809]
[1739985039307,0.82445848,2717.2,2716.7,3.68085]
[1739985039618,0.82445848,2717.2,2716.7,7.3617]
[1739985039816,0.82445848,2717.2,2716.7,3.68085]
[1739985040193,0.7513,2717.0,2716.5,3.6811]
[1739985040534,0.07263687,2716.9,2716.6,3.681]
[1739985041016,0.07263687,2716.9,2716.7,3.68086]
[1739985041416,0.07263687,2716.9,2716.8,3.6808]
[1739985041790,0.07263687,2716.9,2716.6,3.68096]
[1739985044832,0.07263687,2716.9,2716.5,3.68109]
[1739985045043,0.07263687,2716.9,2716.6,3.68106]
[1739985045343,0.52306956,2716.9,2716.5,3.68109]
[1739985045497,0.52306956,2716.9,2716.4,3.68132]
[1739985045691,4.20373956,2716.9,2716.4,3.68132]
[1739985045927,0.52306956,2716.9,2716.5,3.68111]
[1739985046904,4.20374956,2716.9,2716.4,7.36259]
[1739985047308,4.20374956,2716.9,2715.9,3.83179517]
[1739985047309,0.7601,2716.7,2716.3,3.68139]
[1739985047503,0.07249504,2716.6,2716.3,3.68139]
[1739985048408,0.07249504,2716.6,2716.3,7.36279]
[1739985048914,0.07249504,2716.6,2716.5,3.6812]
[1739985049429,0.07249504,2716.6,2716.3,3.68141]
[1739985049634,0.07249504,2716.6,2716.5,3.6812]
[1739985051115,0.8176,2717.0,2716.6,3.68102]
[1739985051321,1.267386,2717.0,2716.6,3.68102]
[1739985051609,0.06998752,2716.9,2716.6,3.68102]
[1739985051806,0.06998752,2716.9,2716.5,3.6812]
[1739985052014,0.06998752,2716.9,2716.5,1.18112]
[1739985052369,0.06998752,2716.9,2716.5,3.68113]
[1739985052829,0.06998752,2716.9,2716.6,3.681]
[1739985053034,0.06998752,2716.9,2716.5,7.36226]
[1739985053203,0.06998752,2716.9,2716.6,3.68101]
[1739985054333,0.8176,2716.8,2715.8,0.27371938]
[1739985054651,0.8176,2716.8,2716.1,0.55]
[1739985054852,0.06980993,2716.7,2716.1,0.55]
[1739985055152,0.06980993,2716.7,2716.5,3.6812]
[1739985055557,0.8176,2716.8,2716.5,3.6812]
[1739985055852,0.06974384,2716.6,2716.5,3.6812]
[1739985056001,0.8176,2716.8,2716.7,3.68093]
[1739985056201,0.8176,2717.1,2716.7,3.68093]
[1739985056673,0.06987771,2717.0,2716.7,3.68093]
[1739985057009,0.06987771,2717.0,2716.6,3.68104]
[1739985057779,0.06987771,2717.0,2716.5,3.68111]
[1739985058242,0.06987771,2717.0,2716.6,3.68099]
[1739985058540,0.06987771,2717.0,2716.7,3.68087]
[1739985060745,0.06987771,2717.0,2716.7,7.36174]
[1739985060948,0.06987771,2717.0,2716.5,3.6811]
[1739985061256,0.06987771,2717.0,2716.6,3.68104]
[1739985061642,0.06987771,2717.0,2716.3,0.7771]
[1739985061643,0.06987771,2717.0,2716.5,3.6812]
[1739985061846,4.45227,2716.9,2716.3,3.68138]
[1739985062161,0.06975121,2716.8,2716.3,3.68138]
[1739985062354,4.482,2716.7,2716.2,9.05152]
[1739985062854,4.482,2716.7,2716.2,5.37]
[1739985062855,4.46928,2716.5,2716.2,5.37]
[1739985063151,0.06934491,2716.4,2716.2,5.37]
[1739985064825,0.06934491,2716.4,2716.3,3.68147]
[1739985065121,0.7837,2716.8,2716.3,3.68147]
[1739985065378,1.31262968,2716.8,2716.2,5.37]
[1739985065874,0.7837,2716.7,2716.2,3.68154]
[1739985066421,3.68107,2716.6,2716.1,3.68167]
[1739985066616,0.7837,2716.7,2716.2,3.68161]
[1739985066857,3.68107,2716.6,2715.9,0.7764]
[1739985067058,3.68107,2716.6,2716.0,3.68181]
[1739985067421,0.8212,2716.4,2716.0,3.68181]
[1739985067616,0.8212,2716.4,2715.7,3.7832]
[1739985067617,0.8212,2716.4,2716.1,3.68174]
[1739985067881,0.06890986,2716.3,2716.0,3.68187]
[1739985068870,0.06890986,2716.3,2716.0,3.68181]
[1739985069963,0.06890986,2716.3,2716.1,3.68171]
[1739985071759,0.06890986,2716.3,2716.0,3.68186]
[1739985072979,0.06890986,2716.3,2715.9,3.682]
[1739985073153,0.06890986,2716.3,2715.9,7.36395]
[1739985073474,0.06890986,2716.3,2715.9,3.68195]
[1739985074081,0.06890986,2716.3,2715.9,7.36386]
[1739985074249,0.52605685,2716.3,2715.5,0.7517]
[1739985074455,0.8315,2716.2,2715.7,3.68218]
[1739985074768,0.8315,2716.0,2715.5,3.68253]
[1739985074948,3.74799153,2716.1,2715.2,5.37]
[1739985074949,0.8315,2715.8,2715.2,3.68285]
[1739985075150,0.8315,2715.8,2715.0,0.14667]
[1739985075374,0.8315,2715.6,2715.1,3.68309]
[1739985075773,0.06561269,2715.5,2715.1,3.68298]
[1739985076045,0.06561269,2715.5,2715.1,3.68299]
[1739985076302,0.06561269,2715.5,2715.0,0.14667]
[1739985076471,0.8065,2715.4,2715.0,0.14667]
[1739985076798,0.06543492,2715.3,2715.1,3.68303]
[1739985077599,0.06543492,2715.3,2715.2,3.68296]
[1739985077821,6.1741,2715.6,2715.0,0.96047]
[1739985078124,5.36,2715.6,2715.2,3.68288]
[1739985078468,0.06561269,2715.5,2715.2,3.68288]
[1739985079171,0.8322,2715.4,2715.0,0.14667]
[1739985079322,0.8322,2715.4,2715.1,3.68309]
[1739985079632,0.89772381,2715.4,2715.1,3.68309]
[1739985079835,0.89772381,2715.4,2715.0,0.14667]
[1739985080131,0.8147,2715.2,2715.0,0.14667]
[1739985080302,4.49767,2715.2,2715.0,0.14667]
[1739985080635,1.05136233,2715.1,2715.0,0.14667]
[1739985081497,4.73446233,2715.1,2715.0,0.14667]
[1739985081697,1.05136233,2715.1,2715.0,0.14667]
[1739985082439,0.06559533,2715.1,2715.0,0.14667]
[1739985085252,3.74869533,2715.1,2715.0,0.14667]
[1739985085548,4.54269533,2715.1,2715.0,0.14667]
[1739985085709,0.85959533,2715.1,2715.0,0.14667]
[1739985087307,0.06559533,2715.1,2715.0,0.14667]
[1739985087504,6.1657,2715.3,2715.0,3.82991]
[1739985088305,5.36,2715.3,2715.2,3.68296]
[1739985088542,5.36,2715.3,2715.1,3.68304]
[1739985088705,5.36,2715.3,2715.0,0.14667]
[1739985089316,5.36,2715.3,2715.0,3.82989]
[1739985089533,0.7676,2715.6,2715.1,3.68302]
[1739985089842,1.89627257,2715.6,2715.2,3.68296]
[1739985090049,0.06456398,2715.5,2715.2,3.68296]
[1739985090247,0.06456398,2715.5,2715.3,3.68278]
[1739985090407,0.06456398,2715.5,2715.4,3.68269]
[1739985090610,0.7681,2715.8,2715.4,3.68269]
[1739985090985,0.06473034,2715.7,2715.5,3.68255]
[1739985091132,1.52856157,2715.8,2715.4,3.68257]
[1739985091133,0.7681,2715.8,2715.4,3.68257]
[1739985091338,0.06473034,2715.7,2715.3,3.68283]
[1739985091543,0.7681,2715.8,2715.3,3.68283]
[1739985091852,0.06473034,2715.7,2715.3,3.68283]
[1739985092041,0.06473034,2715.7,2715.4,3.6826]
[1739985092536,0.06464148,2715.6,2715.4,3.6826]
[1739985092733,0.06464148,2715.6,2715.5,3.68256]
[1739985092932,0.7681,2715.8,2715.5,3.68256]
[1739985093454,0.06473034,2715.7,2715.5,3.68256]
[1739985093965,0.7681,2715.8,2715.5,3.68256]
[1739985094116,0.06464148,2715.6,2715.5,3.68256]
[1739985094430,0.7681,2715.8,2715.5,3.68256]
[1739985094927,0.7681,2715.8,2715.3,3.68275]
[1739985094928,0.7681,2715.8,2715.4,3.68269]
[1739985096056,0.7681,2715.8,2715.5,3.68247]
[1739985096816,0.7681,2715.8,2715.2,3.68286]
[1739985097021,0.7681,2715.8,2715.3,3.68274]
[1739985097361,1.213099,2715.8,2715.3,3.68274]
[1739985097522,0.06264909,2715.7,2715.2,7.36575]
[1739985097859,0.06264909,2715.7,2715.3,3.68281]
[1739985098060,1.213099,2715.8,2715.2,3.68286]
[1739985098227,0.06256023,2715.6,2715.1,3.68309]
[1739985098425,0.8133,2715.5,2715.1,3.68309]
[1739985098760,0.87577137,2715.5,2715.2,3.68294]
[1739985099120,0.87577137,2715.5,2715.2,3.68296]
[1739985099575,0.87577137,2715.5,2715.2,3.68287]
[1739985099868,0.87577137,2715.5,2715.3,3.68275]
[1739985106715,0.87577137,2715.5,2715.1,3.68309]
[1739985106981,0.87577137,2715.5,2715.2,3.6829]
[1739985109384,3.6827,2715.4,2715.0,0.14667]
[1739985109532,1.25464714,2715.3,2715.0,0.14667]
[1739985110729,1.25464714,2715.3,2715.1,3.68309]
[1739985110730,0.7988,2715.3,2715.1,3.68309]
[1739985110964,5.36,2715.4,2715.1,3.68309]
[1739985111551,0.06210932,2715.3,2715.1,3.68309]
[1739985111886,0.67,2715.2,2715.1,3.68306]
[1739985112233,0.73202043,2715.2,2715.0,3.82978]
[1739985112460,0.73202043,2715.2,2715.0,7.51295]
[1739985112684,0.73202043,2715.2,2715.1,3.6831]
[1739985112904,0.73202043,2715.2,2715.1,4.5136]
[1739985113186,5.36,2715.4,2715.2,3.68288]
[1739985113484,0.06204884,2715.2,2715.0,0.14667]
[1739985113640,5.36,2715.4,2715.0,3.82989]
[1739985113843,0.06195995,2715.1,2715.0,3.82989]
[1739985114043,5.36,2715.4,2715.0,3.82989]
[1739985114278,0.06195995,2715.1,2715.0,7.51311]
[1739985114439,5.97828,2715.4,2715.0,7.51311]
[1739985114440,5.97828,2715.4,2715.1,3.68307]
[1739985114883,5.97828,2715.4,2715.1,3.6831]
[1739985115087,0.06213773,2715.3,2715.1,3.6831]
[1739985115893,0.06213773,2715.3,2715.0,3.82981]
[1739985116390,0.06213773,2715.3,2715.1,3.68301]
[1739985116543,0.8228,2715.5,2715.1,3.68301]
[1739985116770,0.8228,2715.5,2715.2,3.68296]
[1739985116970,0.67,2715.3,2715.2,3.68296]
[1739985117209,0.73213773,2715.3,2715.1,3.68309]
[1739985117578,0.73213773,2715.3,2715.0,7.51295]
[1739985117771,0.73213773,2715.3,2715.0,3.8298]
[1739985118369,0.7649,2715.2,2715.0,0.14667]
[1739985118909,0.06188041,2715.1,2715.0,0.14667]
[1739985119266,0.06188041,2715.1,2715.0,3.82991]
[1739985119496,0.67,2715.3,2715.1,3.68308]
[1739985120280,0.67,2715.3,2715.2,3.68296]
[1739985121300,0.7882,2715.5,2715.2,3.68296]
[1739985122068,0.7882,2715.5,2715.3,3.68282]
[1739985122268,0.06173798,2715.4,2715.3,3.68282]
[1739985122913,0.06173798,2715.4,2715.2,3.68294]
[1739985123108,0.06173798,2715.4,2715.0,0.14667]
[1739985123266,0.06173798,2715.4,2715.0,3.8299]
[1739985123470,0.51498078,2715.4,2715.0,3.8299]
[1739985123816,0.51498078,2715.4,2715.0,0.14667]
[1739985123965,0.51498078,2715.4,2715.1,3.68308]
[1739985124168,0.06173798,2715.4,2715.1,3.68308]
[1739985124387,0.06173798,2715.4,2715.0,0.14667]
[1739985124633,0.06173798,2715.4,2715.0,3.82984]
[1739985125118,0.06173798,2715.4,2715.0,0.14667]
[1739985125319,0.753,2715.3,2715.0,0.14667]
[1739985125508,0.4497488,2715.2,2715.0,0.14667]
[1739985125690,0.51130902,2715.2,2715.0,0.14667]
[1739985126615,0.06156022,2715.2,2715.0,3.82984]
[1739985126932,0.753,2715.3,2715.0,0.14667]